bitfinex-derivatives/quotes_BTCF0:USTF0_20251030
["timestamp","ask_amount","ask_price","bid_price","bid_amount"]
[1761853376402,0.68906,106700.0,106690.0,0.44494]
[1761853376592,0.66648,106700.0,106690.0,0.44494]
[1761853376788,0.33,106700.0,106690.0,0.44494]
[1761853377002,0.003,106710.0,106700.0,0.10817]
[1761853377302,0.00967842,106740.0,106730.0,0.08414]
[1761853377499,0.03229,106740.0,106730.0,0.08414]
[1761853377700,0.04191686,106740.0,106730.0,0.08414]
[1761853377900,0.05420686,106740.0,106730.0,0.08414]
[1761853378291,0.41500686,106740.0,106730.0,0.08414]
[1761853378491,0.55500686,106740.0,106730.0,0.08414]
[1761853378706,0.56100686,106740.0,106730.0,0.08514]
[1761853378898,0.55095626,106740.0,106730.0,0.08514]
[1761853379204,0.55595626,106740.0,106730.0,0.08614]
[1761853379499,0.45600686,106740.0,106730.0,0.08614]
[1761853380297,0.02062686,106740.0,106730.0,0.08614]
[1761853380504,0.02062686,106740.0,106730.0,0.8097731]
[1761853380797,0.02062686,106740.0,106730.0,0.44694]
[1761853381000,0.39309,106740.0,106730.0,0.08614]
[1761853381300,0.42309,106740.0,106730.0,0.08614]
[1761853381509,0.42809,106740.0,106730.0,0.08614]
[1761853381800,0.65809,106740.0,106730.0,0.002]
[1761853381992,0.4780394,106740.0,106730.0,0.08514]
[1761853382193,0.67609,106740.0,106730.0,0.08414]
[1761853382503,0.67909,106740.0,106730.0,0.08414]
[1761853383202,0.7790394,106740.0,106730.0,0.08414]
[1761853383405,0.67909,106740.0,106730.0,0.08414]
[1761853383801,0.6668,106740.0,106720.0,0.10817]
[1761853383996,0.69716,106730.0,106720.0,0.10817]
[1761853384198,0.65636,106730.0,106720.0,0.10817]
[1761853384999,0.7563094,106730.0,106720.0,0.10817]
[1761853385201,0.4363094,106730.0,106720.0,0.10817]
[1761853385512,1.10960716,106730.0,106710.0,0.08414]
[1761853385700,1.11060716,106730.0,106710.0,0.04267]
[1761853385894,1.47344026,106730.0,106700.0,0.38483]
[1761853386096,0.3608,106720.0,106700.0,0.46897]
[1761853386304,0.3362,106710.0,106700.0,0.46897]
[1761853386504,0.6162,106710.0,106700.0,0.46897]
[1761853386907,0.3862,106710.0,106700.0,0.46897]
[1761853387099,0.3588136,106710.0,106700.0,0.46897]
[1761853387409,0.6988136,106710.0,106700.0,0.46897]
[1761853388310,0.6772,106710.0,106700.0,0.47497]
[1761853388508,0.6772,106710.0,106700.0,0.47597]
[1761853389102,0.001,106710.0,106700.0,0.8388031]
[1761853389304,0.001,106710.0,106700.0,1.4388031]
[1761853389505,0.33584,106730.0,106720.0,0.02403]
[1761853389704,0.73845629,106730.0,106720.0,0.0667]
[1761853390012,0.73845629,106730.0,106720.0,0.10817]
[1761853390207,0.63850689,106730.0,106720.0,0.10817]
[1761853390408,0.63850689,106730.0,106720.0,0.46897]
[1761853391210,0.63850689,106730.0,106720.0,0.10817]
[1761853391409,0.63850689,106730.0,106720.0,0.46897]
[1761853391710,0.30266689,106730.0,106720.0,0.10817]
[1761853391912,0.63838689,106730.0,106720.0,0.11217]
[1761853392107,0.73833629,106730.0,106720.0,0.11217]
[1761853392309,1.69913629,106730.0,106720.0,0.003]
[1761853392515,1.13537061,106730.0,106720.0,0.002]
[1761853392700,1.15187177,106730.0,106720.0,0.006]
[1761853392897,0.82335177,106730.0,106720.0,0.11417]
[1761853393116,0.30266689,106730.0,106720.0,0.47497]
[1761853393306,0.43814689,106730.0,106720.0,0.47497]
[1761853393504,0.35814689,106730.0,106720.0,0.47497]
[1761853393810,0.02266689,106730.0,106720.0,0.47497]
[1761853394006,0.35850689,106730.0,106720.0,0.8338031]
[1761853394205,0.35850689,106730.0,106720.0,0.8368031]
[1761853394405,0.35850689,106730.0,106720.0,0.8348031]
[1761853394603,0.02266689,106730.0,106720.0,0.9323272]
[1761853394807,0.00940669,106740.0,106730.0,0.08414]
[1761853395007,0.35862767,106740.0,106730.0,0.8077731]
[1761853395209,0.02274767,106740.0,106730.0,0.8077731]
[1761853395403,0.39429142,106760.0,106750.0,0.08191]
[1761853395613,0.7120737,106760.0,106750.0,0.08191]
[1761853395811,0.7120337,106760.0,106750.0,0.08191]
[1761853396213,0.7120337,106760.0,106750.0,0.04192]
[1761853396214,0.8119831,106760.0,106750.0,0.04192]
[1761853396416,0.45148943,106760.0,106750.0,0.08191]
[1761853396715,0.94228943,106760.0,106740.0,0.10685]
[1761853396907,0.3608,106750.0,106740.0,0.02494]
[1761853397221,0.67610147,106750.0,106720.0,0.46674]
[1761853397515,0.33592,106740.0,106730.0,0.08191]
[1761853397720,0.67866228,106740.0,106730.0,0.44271]
[1761853398515,0.57866228,106740.0,106730.0,0.44271]
[1761853398907,0.07726777,106750.0,106740.0,0.10685]
[1761853399109,0.6558,106750.0,106740.0,0.46765]
[1761853399307,0.32,106750.0,106740.0,0.46765]
[1761853399503,0.7557494,106750.0,106740.0,0.42766]
[1761853399707,0.7557494,106750.0,106740.0,0.02494]
[1761853399912,0.6558,106750.0,106740.0,0.10685]
[1761853400110,0.6558,106750.0,106740.0,0.46765]
[1761853400610,0.65572,106750.0,106740.0,0.46765]
[1761853400914,0.00949573,106760.0,106750.0,0.08191]
[1761853401104,0.13344082,106770.0,106760.0,0.10685]
[1761853401414,0.7356294,106770.0,106760.0,0.10685]
[1761853401821,0.74493556,106770.0,106760.0,0.10685]
[1761853402313,0.40925556,106770.0,106760.0,0.10685]
[1761853402507,0.18925556,106770.0,106760.0,0.10685]
[1761853402702,0.52477556,106770.0,106760.0,0.46765]
[1761853402913,0.03349142,106790.0,106780.0,0.10914]
[1761853403109,0.02,106790.0,106780.0,0.8327731]
[1761853403315,0.33552,106800.0,106790.0,0.0406]
[1761853403508,0.40552,106800.0,106790.0,0.08231]
[1761853403817,0.35552,106800.0,106790.0,0.08231]
[1761853404521,0.46503427,106800.0,106790.0,0.08331]
[1761853404721,0.12951427,106800.0,106790.0,0.08331]
[1761853404915,0.12951427,106800.0,106790.0,0.8069431]
[1761853404916,0.02956487,106800.0,106790.0,0.8069431]
[1761853405523,0.3608,106820.0,106810.0,0.08231]
[1761853405820,0.92684,106820.0,106810.0,0.08231]
[1761853406208,0.93643019,106820.0,106810.0,0.08231]
[1761853406412,0.38563019,106820.0,106810.0,0.44311]
[1761853406713,0.34963019,106820.0,106810.0,0.44311]
[1761853406916,0.01559019,106820.0,106810.0,0.44311]
[1761853407117,0.47145959,106820.0,106810.0,0.44311]
[1761853407419,0.45145959,106820.0,106810.0,0.44311]
[1761853407627,0.47145959,106820.0,106810.0,0.44311]
[1761853408010,0.03559019,106820.0,106810.0,0.44311]
[1761853408208,0.3608,106840.0,106810.0,0.8087431]
[1761853408421,0.62687415,106860.0,106850.0,0.08231]
[1761853408625,0.62687415,106860.0,106850.0,0.44311]
[1761853408626,0.09352436,106860.0,106850.0,0.44311]
[1761853408816,0.33596,106870.0,106860.0,0.10782]
[1761853409017,0.38596,106870.0,106860.0,0.4706531]
[1761853409316,0.42688,106880.0,106870.0,0.0406]
[1761853409507,0.66688,106880.0,106870.0,0.08231]
[1761853409714,0.63688,106880.0,106870.0,0.08231]
[1761853410117,0.24304,106880.0,106870.0,0.08231]
[1761853410328,0.00999999,106930.0,106870.0,0.08231]
[1761853410329,0.3608,106920.0,106870.0,0.3608]
[1761853410520,0.3608,106920.0,106910.0,0.0406]
[1761853410521,0.08505118,106920.0,106910.0,0.0406]
[1761853410819,0.02486,106940.0,106910.0,0.4451431]
[1761853411014,0.08364,106930.0,106920.0,0.3628331]
[1761853411217,0.08364,106930.0,106910.0,1.5]
[1761853411420,0.08364,106920.0,106910.0,1.5]
[1761853411621,0.02384597,106940.0,106910.0,1.8628331]
[1761853411823,0.1835894,106930.0,106920.0,0.3628331]
[1761853412019,0.1910794,106930.0,106920.0,0.3608]
[1761853412219,0.1910794,106930.0,106910.0,2.2246331]
[1761853412220,0.1085,106920.0,106910.0,2.2246331]
[1761853412419,0.1285,106920.0,106910.0,1.8618]
[1761853412610,0.10364,106920.0,106910.0,2.2246331]
[1761853412814,0.06251,106920.0,106910.0,1.8618]
[1761853413015,0.10364,106920.0,106910.0,1.8618]
[1761853413416,0.4693,106920.0,106910.0,1.502]
[1761853413611,0.5093,106920.0,106910.0,0.002]
[1761853413813,0.7593,106920.0,106910.0,0.002]
[1761853414222,0.45331,106920.0,106910.0,0.4471431]
[1761853414425,0.06251,106920.0,106910.0,0.8079431]
[1761853414626,0.02,106920.0,106910.0,0.8079431]
[1761853414820,0.1285,106920.0,106910.0,0.4034]
[1761853415017,0.5692494,106920.0,106910.0,0.002]
[1761853415225,0.8992494,106920.0,106910.0,0.002]
[1761853415525,0.4693,106920.0,106910.0,0.4054331]
[1761853415729,0.08364,106920.0,106910.0,0.8079431]
[1761853416029,0.5193,106920.0,106910.0,0.002]
[1761853416429,0.05,106920.0,106910.0,0.4471431]
[1761853416624,0.1585,106920.0,106910.0,0.44511]
[1761853417332,0.3628331,106950.0,106940.0,0.04171]
[1761853417333,0.3608,106950.0,106940.0,0.04171]
[1761853417521,0.53444,106950.0,106930.0,0.3608]
[1761853417831,0.08364,106950.0,106940.0,0.0406]
[1761853418035,0.12364,106950.0,106940.0,0.4451431]
[1761853418234,0.12364,106950.0,106940.0,0.08231]
[1761853418418,0.1085,106940.0,106930.0,0.3608]
[1761853418718,0.08364,106930.0,106920.0,0.7642331]
[1761853418917,0.08364,106930.0,106920.0,0.4014]
[1761853418918,0.10364,106930.0,106920.0,0.4014]
[1761853419119,0.08364,106930.0,106920.0,0.4014]
[1761853419531,0.1085,106920.0,106910.0,0.3628]
[1761853419715,0.04251,106910.0,106900.0,0.7236331]
[1761853419916,0.02686,106940.0,106910.0,0.08231]
[1761853420124,0.1285,106940.0,106920.0,0.7236331]
[1761853420316,0.08364,106930.0,106910.0,0.7236331]
[1761853420517,0.1085,106920.0,106910.0,0.3608]
[1761853420825,0.08364,106910.0,106900.0,0.3638]
[1761853421020,0.10364,106910.0,106900.0,0.3638]
[1761853421928,0.62444,106910.0,106900.0,0.003]
[1761853422130,0.7271894,106910.0,106900.0,0.003]
[1761853422431,0.08364,106890.0,106880.0,0.9608]
[1761853422628,0.09251,106890.0,106880.0,1.4059431]
[1761853423024,0.10364,106890.0,106880.0,1.04311]
[1761853423224,0.10364,106890.0,106880.0,0.9608]
[1761853423427,0.74444,106890.0,106880.0,0.6]
[1761853423635,0.51444,106890.0,106880.0,0.6]
[1761853423834,0.51444,106890.0,106880.0,0.606]
[1761853423835,0.29364,106890.0,106880.0,0.606]
[1761853424029,0.29364,106890.0,106880.0,0.61]
[1761853424237,0.7313494,106890.0,106880.0,0.61]
[1761853424432,1.0921494,106890.0,106880.0,0.61]
[1761853425133,1.6921494,106890.0,106880.0,0.61]
[1761853425340,1.35141844,106890.0,106880.0,0.604]
[1761853425639,1.1049494,106890.0,106880.0,0.607]
[1761853426033,1.1021494,106890.0,106880.0,0.602]
[1761853426335,1.1021494,106890.0,106880.0,0.605]
[1761853426533,1.0022,106890.0,106880.0,0.603]
[1761853426836,1.0022,106890.0,106880.0,0.601]
[1761853427330,1.005,106890.0,106880.0,0.601]
[1761853427529,1.1021494,106890.0,106880.0,0.601]
[1761853427930,1.0022,106890.0,106880.0,0.601]
[1761853428432,1.0022,106890.0,106880.0,0.6175656]
[1761853428740,1.0022,106890.0,106880.0,0.6195656]
[1761853428934,1.1021494,106890.0,106880.0,0.6195656]
[1761853429134,1.1021494,106890.0,106880.0,0.6175656]
[1761853429337,1.1021494,106890.0,106880.0,0.6155656]
[1761853429939,1.1021494,106890.0,106880.0,0.6195656]
[1761853430332,0.65444,106890.0,106880.0,0.6601656]
[1761853430533,0.25251,106890.0,106880.0,1.33265464]
[1761853430835,0.25251,106890.0,106880.0,0.97185464]
[1761853430836,0.29364,106890.0,106880.0,0.97185464]
[1761853431036,0.29364,106890.0,106880.0,0.6998756]
[1761853431540,0.29364,106890.0,106880.0,0.6978756]
[1761853431837,0.65444,106890.0,106880.0,0.6978756]
[1761853432034,0.3935894,106890.0,106880.0,0.6978756]
[1761853432236,0.29364,106890.0,106880.0,0.6601656]
[1761853432538,0.29479014,106890.0,106880.0,0.6601656]
[1761853432734,0.29479014,106890.0,106880.0,0.6990756]
[1761853433128,0.29479014,106890.0,106880.0,0.6601656]
[1761853433333,0.65559014,106890.0,106880.0,0.6601656]
[1761853433838,0.29479014,106890.0,106880.0,0.6601656]
[1761853434036,0.29479014,106890.0,106880.0,1.0843656]
[1761853434230,0.21115014,106890.0,106880.0,1.33083464]
[1761853434430,0.02115014,106890.0,106880.0,1.33363464]
[1761853434631,0.02115014,106890.0,106880.0,1.33083464]
[1761853435136,0.02115014,106890.0,106880.0,1.33363464]
[1761853435337,0.337,106900.0,106890.0,0.08004]
[1761853435542,0.3608,106920.0,106910.0,0.08004]
[1761853435735,0.44096,106930.0,106920.0,0.08004]
[1761853435930,0.5409094,106930.0,106920.0,0.1190956]
[1761853436141,0.8309094,106930.0,106920.0,0.0946056]
[1761853436938,0.74096,106930.0,106920.0,0.0145656]
[1761853437633,0.73096,106930.0,106920.0,0.0145656]
[1761853437834,0.8309094,106930.0,106920.0,0.0145656]
[1761853438140,0.8449094,106930.0,106920.0,0.0145656]
[1761853438327,0.8479094,106930.0,106920.0,0.0145656]
[1761853438731,1.09437844,106930.0,106920.0,0.0145656]
[1761853438942,0.8479094,106930.0,106920.0,0.0145656]
[1761853439138,0.8507094,106930.0,106920.0,0.0145656]
[1761853439339,1.72190225,106930.0,106920.0,0.0145656]
[1761853439532,1.71910225,106930.0,106920.0,0.0145656]
[1761853440442,1.79278782,106930.0,106920.0,0.0145656]
[1761853441334,0.94631878,106930.0,106920.0,0.0145656]
[1761853441529,1.19558782,106930.0,106920.0,0.0145656]
[1761853441730,0.08016,106900.0,106890.0,0.44084]
[1761853442030,0.08016,106890.0,106880.0,1.06533]
[1761853442239,0.18016,106890.0,106880.0,1.06533]
[1761853442440,0.13959,106890.0,106880.0,1.06533]
[1761853442630,0.1,106890.0,106880.0,1.09023177]
[1761853442835,0.18016,106890.0,106880.0,1.06533]
[1761853443036,0.13959,106890.0,106880.0,1.06533]
[1761853443239,0.1999494,106890.0,106880.0,1.06533]
[1761853443629,0.1,106890.0,106880.0,1.31179904]
[1761853443941,0.1,106890.0,106880.0,1.06533]
[1761853444138,0.1,106890.0,106880.0,1.31179904]
[1761853444337,0.1,106890.0,106880.0,1.34450081]
[1761853444533,0.1,106890.0,106880.0,1.34170081]
[1761853445143,0.1,106890.0,106880.0,1.09523177]
[1761853445439,0.6968,106910.0,106900.0,0.04113]
[1761853445643,1.09696,106910.0,106900.0,0.08004]
[1761853445945,0.08016,106900.0,106890.0,0.44084]
[1761853446130,0.39016,106900.0,106890.0,0.3608]
[1761853446335,0.39016,106900.0,106880.0,0.66166081]
[1761853446336,0.08016,106890.0,106880.0,0.3658]
[1761853446532,0.36016,106890.0,106880.0,0.08204]
[1761853446930,0.72096,106890.0,106880.0,0.08204]
[1761853447131,1.30286904,106890.0,106880.0,0.002]
[1761853447331,1.41281844,106890.0,106880.0,0.002]
[1761853447537,1.41281844,106890.0,106880.0,0.005]
[1761853447737,1.41281844,106890.0,106880.0,0.003]
[1761853448337,1.41281844,106890.0,106880.0,0.005]
[1761853448835,1.41561844,106890.0,106880.0,0.003]
[1761853449043,1.43754225,106890.0,106880.0,0.003]
[1761853449346,1.43754225,106890.0,106850.0,0.42683177]
[1761853449347,0.08016,106860.0,106850.0,0.42683177]
[1761853449547,0.41016,106860.0,106850.0,0.42683177]
[1761853450043,0.41016,106860.0,106850.0,0.46574177]
[1761853450241,0.41016,106860.0,106850.0,0.38570177]
[1761853450242,0.43502,106860.0,106850.0,0.38570177]
[1761853450547,0.08016,106850.0,106840.0,0.46574177]
[1761853450849,0.08016,106840.0,106830.0,0.42313592]
[1761853451147,0.41016,106840.0,106830.0,0.42313592]
[1761853451737,0.77096,106840.0,106830.0,0.06233592]
[1761853451939,0.8709094,106840.0,106830.0,0.06233592]
[1761853452135,1.22865176,106840.0,106830.0,0.02120592]
[1761853452441,1.22865176,106840.0,106830.0,0.02320592]
[1761853452646,1.22865176,106840.0,106830.0,0.01451797]
[1761853452854,1.25337557,106840.0,106830.0,0.01451797]
[1761853453148,1.22865176,106840.0,106830.0,0.001]
[1761853453641,0.08016,106810.0,106800.0,0.42642]
[1761853453843,0.13016,106810.0,106800.0,0.46533]
[1761853454342,0.13016,106810.0,106800.0,0.44084]
[1761853454649,0.42016,106810.0,106800.0,0.08004]
[1761853455140,0.42016,106810.0,106800.0,0.08504]
[1761853455342,0.42016,106810.0,106800.0,0.71531904]
[1761853455542,0.24,106810.0,106800.0,0.71531904]
[1761853455741,0.3608,106830.0,106820.0,0.09982]
[1761853456047,0.46207332,106840.0,106830.0,0.07681]
[1761853456048,0.40018,106840.0,106830.0,0.07681]
[1761853456242,1.10411,106840.0,106830.0,0.32327904]
[1761853456438,1.02564,106840.0,106830.0,0.07681]
[1761853456647,0.07847,106830.0,106820.0,0.09982]
[1761853456843,0.37847,106830.0,106820.0,0.46062]
[1761853457149,0.37847,106830.0,106820.0,0.44261]
[1761853457448,0.37847,106830.0,106820.0,0.043]
[1761853457651,0.37847,106830.0,106820.0,0.07981]
[1761853458038,0.4784194,106830.0,106820.0,0.07981]
[1761853458241,0.4784194,106830.0,106820.0,0.08181]
[1761853458446,0.4784194,106830.0,106820.0,0.44261]
[1761853460551,0.4784194,106830.0,106820.0,0.005]
[1761853460753,0.8392194,106830.0,106820.0,0.005]
[1761853461052,1.08568844,106830.0,106820.0,0.005]
[1761853461547,1.09568844,106830.0,106820.0,0.005]
[1761853461754,1.08568844,106830.0,106820.0,0.005]
[1761853462850,0.07808,106800.0,106790.0,0.68407904]
[1761853463152,1.02001844,106830.0,106800.0,0.07681]
[1761853463153,0.07808,106810.0,106800.0,0.07681]
[1761853463352,0.07808,106800.0,106790.0,0.68407904]
[1761853463654,0.09808,106800.0,106790.0,0.68407904]
[1761853463853,0.09808,106800.0,106790.0,0.43761]
[1761853464053,0.09808,106800.0,106790.0,0.44661]
[1761853464054,0.09908,106800.0,106790.0,0.44661]
[1761853464544,0.1990294,106800.0,106790.0,0.44661]
[1761853464741,0.09908,106800.0,106790.0,0.44661]
[1761853465051,0.001,106800.0,106790.0,0.69807904]
[1761853465240,0.021,106800.0,106790.0,0.69807904]
[1761853465441,0.09908,106800.0,106790.0,0.69807904]
[1761853465647,0.09908,106800.0,106790.0,0.45161]
[1761853466844,0.37908,106800.0,106790.0,0.45161]
[1761853467250,0.17908,106800.0,106790.0,0.45161]
[1761853467453,0.17908,106800.0,106790.0,0.41399]
[1761853467754,0.07808,106780.0,106770.0,0.07681]
[1761853467957,0.05,106780.0,106770.0,0.07681]
[1761853468144,0.05,106780.0,106770.0,0.32327904]
[1761853468347,0.48924759,106800.0,106790.0,0.07681]
[1761853468650,0.80924759,106800.0,106790.0,0.07681]
[1761853468857,0.73224,106800.0,106790.0,0.07681]
[1761853469056,0.73224,106800.0,106790.0,0.24646904]
[1761853469057,0.07,106800.0,106790.0,0.24646904]
[1761853469350,0.07,106800.0,106790.0,0.32327904]
[1761853469556,0.39912,106820.0,106810.0,0.07681]
[1761853469752,0.76888,106820.0,106810.0,0.07681]
[1761853470359,0.07808,106810.0,106800.0,0.10067]
[1761853470652,0.38808,106810.0,106800.0,0.10067]
[1761853470848,0.38808,106810.0,106800.0,0.46147]
[1761853471044,0.31,106810.0,106800.0,0.70793904]
[1761853471248,0.3618,106820.0,106810.0,0.07681]
[1761853471549,0.41908,106820.0,106810.0,0.07681]
[1761853471850,0.341,106820.0,106810.0,0.07681]
[1761853472451,0.5180294,106820.0,106810.0,0.07681]
[1761853472659,0.41808,106820.0,106810.0,0.07681]
[1761853473155,1.37381904,106820.0,106810.0,0.003]
[1761853473355,1.1492776,106820.0,106810.0,0.003]
[1761853473561,1.1348476,106820.0,106810.0,0.07881]
[1761853474149,1.1368476,106820.0,106810.0,0.07881]
[1761853474351,0.875997,106820.0,106810.0,0.07881]
[1761853474656,0.7760476,106820.0,106810.0,0.07881]
[1761853474860,0.77606164,106820.0,106810.0,0.002]
[1761853475259,0.77606164,106820.0,106810.0,0.001]
[1761853475457,0.77606164,106820.0,106810.0,0.07781]
[1761853475760,0.69798164,106820.0,106810.0,0.07781]
[1761853475951,0.69798164,106820.0,106810.0,0.07681]
[1761853476152,0.69998164,106820.0,106810.0,0.07681]
[1761853476348,0.79993104,106820.0,106810.0,0.07681]
[1761853476554,0.69998164,106820.0,106810.0,0.07681]
[1761853477360,0.344,106820.0,106810.0,0.68407904]
[1761853477560,0.024,106820.0,106810.0,0.68407904]
[1761853477767,0.004,106820.0,106810.0,0.68407904]
[1761853478154,0.024,106820.0,106810.0,0.68407904]
[1761853478360,0.04602444,106820.0,106810.0,0.68407904]
[1761853479062,0.02602444,106820.0,106810.0,0.68687904]
[1761853479255,0.02602444,106820.0,106810.0,0.68407904]
[1761853479455,0.04602444,106820.0,106810.0,0.68407904]
[1761853480066,0.07602444,106820.0,106810.0,0.43761]
[1761853480364,0.07602444,106820.0,106810.0,0.68407904]
[1761853481366,0.24405384,106820.0,106810.0,0.43761]
[1761853481553,0.14410444,106820.0,106810.0,0.43761]
[1761853481754,0.10410444,106820.0,106810.0,0.07681]
[1761853481954,0.07808,106810.0,106800.0,0.46147]
[1761853482161,0.41010444,106810.0,106800.0,0.43761]
[1761853482469,0.43482825,106810.0,106800.0,0.3608]
[1761853482668,0.43482825,106810.0,106790.0,0.3608]
[1761853482965,0.07808,106800.0,106790.0,0.43761]
[1761853483260,0.42010444,106800.0,106790.0,0.07681]
[1761853483460,0.42010444,106800.0,106790.0,0.43761]
[1761853483666,0.42010444,106800.0,106790.0,0.07681]
[1761853483865,0.34202444,106800.0,106790.0,0.43861]
[1761853484371,0.35784381,106820.0,106810.0,0.07681]
[1761853484571,0.35678836,106820.0,106810.0,0.43761]
[1761853485261,0.51009395,106820.0,106810.0,0.43761]
[1761853485671,0.41014455,106820.0,106810.0,0.43761]
[1761853485866,0.33206455,106820.0,106810.0,0.43761]
[1761853486061,0.33406455,106820.0,106810.0,0.43761]
[1761853486263,0.07808,106810.0,106800.0,0.42385]
[1761853486461,0.42014455,106810.0,106800.0,0.46147]
[1761853487471,0.52009395,106810.0,106800.0,0.10067]
[1761853487769,0.52009395,106810.0,106800.0,0.001]
[1761853487967,0.54481776,106810.0,106800.0,0.001]
[1761853488173,0.90561776,106810.0,106800.0,0.001]
[1761853488367,0.88089395,106810.0,106800.0,0.001]
[1761853488675,0.90561776,106810.0,106800.0,0.001]
[1761853492973,0.906061,106810.0,106800.0,0.001]
[1761853494669,0.545261,106810.0,106800.0,0.001]
[1761853494870,0.906061,106810.0,106800.0,0.001]
[1761853495479,0.906061,106810.0,106800.0,0.07532]
[1761853495683,0.545261,106810.0,106800.0,0.07532]
[1761853495980,0.906061,106810.0,106800.0,0.07532]
[1761853496477,0.42013676,106810.0,106800.0,0.09651]
[1761853497584,0.36037676,106810.0,106800.0,0.09651]
[1761853497880,0.39544676,106810.0,106800.0,0.45731]
[1761853498668,0.39544676,106810.0,106800.0,0.09651]
[1761853498876,0.39544676,106810.0,106800.0,0.45731]
[1761853499179,0.36037676,106810.0,106800.0,0.45731]
[1761853499373,0.32205676,106810.0,106800.0,1.06011]
[1761853499570,0.3,106810.0,106800.0,1.06011]
[1761853499775,0.3,106810.0,106800.0,1.05731]
[1761853500180,0.33316,106820.0,106810.0,0.0704]
[1761853500376,0.10727748,106820.0,106810.0,0.4312]
[1761853500680,0.20722688,106820.0,106810.0,0.4312]
[1761853501279,0.04206748,106820.0,106810.0,0.4312]
[1761853501581,0.31206748,106820.0,106810.0,0.4312]
[1761853501783,0.294,106820.0,106810.0,0.4312]
[1761853501971,0.294,106820.0,106810.0,0.434]
[1761853502171,0.294,106820.0,106810.0,0.4312]
[1761853502382,0.294,106820.0,106810.0,0.79607626]
[1761853502981,0.74713682,106820.0,106810.0,0.0704]
[1761853503171,0.1288659,106800.0,106790.0,0.41060355]
[1761853503376,0.2439359,106800.0,106790.0,0.4312]
[1761853503575,0.2653559,106800.0,106790.0,0.4312]
[1761853503781,0.4653559,106800.0,106790.0,0.4312]
[1761853504380,0.4439359,106800.0,106790.0,0.4322]
[1761853504573,0.4653559,106800.0,106790.0,0.4322]
[1761853504777,0.5653053,106800.0,106790.0,0.003]
[1761853505083,0.50741092,106800.0,106790.0,0.4342]
[1761853505284,0.0936559,106800.0,106790.0,0.79907626]
[1761853505480,0.0936559,106800.0,106790.0,0.94254451]
[1761853505780,0.0936559,106800.0,106790.0,0.84663062]
[1761853505984,0.1136559,106800.0,106790.0,0.48455436]
[1761853506382,0.1136559,106800.0,106790.0,1.08455436]
[1761853506585,0.1639359,106800.0,106790.0,0.48455436]
[1761853506783,0.2139359,106800.0,106790.0,0.4341]
[1761853507381,0.2353559,106800.0,106790.0,0.4341]
[1761853507585,0.4853559,106800.0,106790.0,0.4341]
[1761853508582,0.5853053,106800.0,106790.0,0.4341]
[1761853509087,0.50741668,106800.0,106790.0,0.4341]
[1761853509685,0.50741668,106800.0,106790.0,0.0733]
[1761853510187,0.60736608,106800.0,106790.0,0.0733]
[1761853510589,0.96816608,106800.0,106790.0,0.0733]
[1761853510885,0.07028,106790.0,106770.0,0.41125436]
[1761853511186,0.0917,106780.0,106770.0,0.44652436]
[1761853511383,0.3917,106780.0,106770.0,0.08572436]
[1761853511578,0.72418,106780.0,106770.0,0.05045436]
[1761853511776,0.07028,106770.0,106760.0,0.05045436]
[1761853512089,0.0917,106760.0,106750.0,0.41125436]
[1761853512387,0.4187,106760.0,106750.0,0.3608]
[1761853512583,0.4187,106760.0,106750.0,0.39607]
[1761853512772,0.43081623,106760.0,106740.0,0.41125436]
[1761853512973,0.07028,106750.0,106740.0,0.48165436]
[1761853513179,0.39028,106750.0,106740.0,0.48165436]
[1761853513488,0.39028,106750.0,106740.0,0.4312]
[1761853513689,0.38428,106750.0,106740.0,0.39607]
[1761853514278,0.38428,106750.0,106740.0,0.03527]
[1761853514576,0.4912294,106750.0,106740.0,0.003]
[1761853515080,0.4912294,106750.0,106740.0,0.004]
[1761853516190,0.8520294,106750.0,106740.0,0.004]
[1761853516880,0.4912294,106750.0,106740.0,0.004]
[1761853517485,0.39128,106750.0,106740.0,0.004]
[1761853518182,0.39128,106750.0,106740.0,0.3648]
[1761853518377,0.39128,106750.0,106740.0,0.004]
[1761853518778,0.321,106750.0,106740.0,0.45232]
[1761853518974,0.071,106750.0,106740.0,0.81439626]
[1761853519178,0.44180499,106760.0,106750.0,0.06734]
[1761853519179,0.01211623,106760.0,106750.0,0.06734]
[1761853519378,0.38222,106780.0,106750.0,0.79301626]
[1761853519575,0.06825,106770.0,106760.0,0.393]
[1761853519791,0.36825,106770.0,106760.0,0.42814]
[1761853520790,0.37125,106770.0,106760.0,0.001]
[1761853521099,0.37525,106770.0,106760.0,0.002]
[1761853521592,1.06861,106770.0,106760.0,0.002]
[1761853521977,1.07861,106770.0,106760.0,0.002]
[1761853522796,1.20066968,106770.0,106760.0,0.002]
[1761853523887,1.19066968,106770.0,106760.0,0.002]
[1761853524189,1.20066968,106770.0,106760.0,0.002]
[1761853524379,1.56274594,106770.0,106760.0,0.002]
[1761853524578,1.55274594,106770.0,106760.0,0.002]
[1761853524788,1.56274594,106770.0,106760.0,0.002]
[1761853525779,1.20066968,106770.0,106760.0,0.002]
[1761853525984,1.56274594,106770.0,106760.0,0.002]
[1761853526387,1.20066968,106770.0,106760.0,0.002]
[1761853526593,1.09072028,106770.0,106760.0,0.06781]
[1761853526794,0.70781,106770.0,106760.0,0.06781]
[1761853527294,0.70781,106770.0,106760.0,0.44931]
[1761853527491,0.70781,106770.0,106760.0,0.45211]
[1761853527684,0.37525,106770.0,106760.0,0.44931]
[1761853529298,0.37525,106770.0,106760.0,0.42861]
[1761853529591,0.37525,106770.0,106760.0,0.002]
[1761853530794,0.4751994,106770.0,106760.0,0.002]
[1761853530999,0.82986416,106770.0,106760.0,0.002]
[1761853531199,0.72991476,106770.0,106760.0,0.002]
[1761853531898,0.70781,106770.0,106760.0,0.42861]
[1761853532592,0.007,106770.0,106760.0,0.90735716]
[1761853532792,0.027,106770.0,106760.0,0.81366626]
[1761853533000,0.007,106770.0,106760.0,0.81366626]